bitfinex/quotes_SOLUSD_20240626
["timestamp","ask_amount","ask_price","bid_price","bid_amount"]
[1719397535836,7.3303,136.42,136.38,23.6628]
[1719397537038,7.3299,136.43,136.38,23.6628]
[1719397538649,7.3299,136.43,136.38,41.9938]
[1719397538954,33.85369199,136.47,136.39,7.3318]
[1719397539156,20.0,136.46,136.39,7.3318]
[1719397541947,20.0,136.46,136.38,16.3306]
[1719397542146,27.7138167,136.46,136.38,16.3306]
[1719397542366,35.36391202,136.46,136.38,16.3306]
[1719397542567,7.3308,136.41,136.38,16.3306]
[1719397543046,7.3305,136.42,136.38,16.3306]
[1719397543249,7.3309,136.41,136.38,16.3306]
[1719397543646,7.3304,136.42,136.38,16.3306]
[1719397544656,7.3312,136.41,136.38,16.3306]
[1719397544856,18.3245,136.43,136.38,16.3306]
[1719397545046,7.3315,136.4,136.38,16.3306]
[1719397545246,7.3319,136.39,136.38,16.3306]
[1719397545969,7.3315,136.4,136.38,16.3306]
[1719397548873,0.17,136.44,136.38,16.3306]
[1719397549083,0.34,136.45,136.38,16.3306]
[1719397549381,50.87269782,136.46,136.38,23.663]
[1719397549545,59.5826167,136.45,136.32,30.3485]
[1719397549746,27.7138167,136.44,136.32,23.0133]
[1719397550047,0.34,136.43,136.32,23.0133]
[1719397550242,7.7138167,136.42,136.32,23.0133]
[1719397550451,20.34,136.41,136.32,23.0133]
[1719397550661,28.0538167,136.41,136.32,30.3489]
[1719397551250,18.3301,136.39,136.32,23.0133]
[1719397551445,7.3339,136.36,136.32,23.0133]
[1719397554657,18.3301,136.39,136.32,30.3488]
[1719397555351,25.9835301,136.39,136.32,30.3488]
[1719397556275,7.3335,136.36,136.32,30.3488]
[1719397560072,31.89248168,136.39,136.32,23.0133]
[1719397560073,13.56238168,136.39,136.32,23.0133]
[1719397560285,0.17,136.38,136.28,21.3941]
[1719397560460,20.34,136.38,136.28,28.7318]
[1719397560865,28.0538167,136.38,136.28,28.7318]
[1719397562086,28.0538167,136.38,136.29,7.3372]
[1719397562478,28.0538167,136.38,136.28,47.0762]
[1719397562679,7.7138167,136.37,136.28,47.0762]
[1719397563169,0.17,136.36,136.28,47.0762]
[1719397563368,0.34,136.36,136.28,47.0762]
[1719397564164,7.3354,136.33,136.28,47.0762]
[1719397566369,7.3357,136.32,136.28,47.0762]
[1719397566574,7.3362,136.31,136.28,33.5293]
[1719397566964,7.3362,136.31,136.27,7.3382]
[1719397567159,18.3353,136.35,136.28,7.3378]
[1719397567160,7.3358,136.32,136.28,7.3378]
[1719397567356,7.3358,136.32,136.27,25.6836]
[1719397568456,7.3358,136.32,136.28,7.3376]
[1719397568661,18.3353,136.35,136.28,7.3376]
[1719397572675,15.9739,136.36,136.27,18.3457]
[1719397572876,15.9739,136.36,136.31,7.3358]
[1719397572877,7.3336,136.36,136.31,7.3358]
[1719397573198,7.3341,136.35,136.3,13.8331]
[1719397573786,7.3341,136.35,136.31,7.3362]
[1719397574887,7.3366,136.31,136.27,7.3383]
[1719397575086,7.3358,136.32,136.27,7.3383]
[1719397575269,7.3358,136.32,136.28,7.3377]
[1719397576081,7.3351,136.33,136.29,7.3372]
[1719397576284,7.3351,136.33,136.29,8.28353592]
[1719397576485,7.3351,136.33,136.3,2.4109539]
[1719397576985,7.3351,136.33,136.29,7.3372]
[1719397576986,7.3347,136.34,136.29,7.3372]
[1719397577189,24.0545167,136.37,136.3,18.3415]
[1719397577399,7.3341,136.35,136.31,7.3358]
[1719397578083,7.3341,136.35,136.3,45.4815]
[1719397578084,7.3341,136.35,136.3,52.8182]
[1719397578671,7.7138167,136.37,136.32,18.339]
[1719397578893,18.3308,136.39,136.31,0.17]
[1719397579083,7.3349,136.34,136.3,0.17]
[1719397579274,7.3349,136.34,136.3,0.34]
[1719397579478,7.3349,136.34,136.3,7.6765]
[1719397579679,7.3342,136.35,136.3,7.6765]
[1719397581299,7.3342,136.35,136.31,7.3361]
[1719397581500,26.0446167,136.39,136.3,7.6767]
[1719397581676,7.7138167,136.38,136.3,7.3367]
[1719397581879,7.7138167,136.38,136.28,21.7479]
[1719397581880,20.0,136.37,136.28,21.7479]
[1719397582205,27.7138167,136.37,136.28,21.7479]
[1719397582701,27.7138167,136.37,136.28,29.0853]
[1719397583398,7.3352,136.33,136.28,29.0853]
[1719397584092,7.3352,136.33,136.29,7.3372]
[1719397585594,7.3342,136.35,136.3,7.3367]
[1719397586187,7.3342,136.35,136.31,7.3359]
[1719397587075,7.3342,136.35,136.3,25.6774]
[1719397588491,7.7138167,136.37,136.28,29.0856]
[1719397588702,16.3489,136.36,136.28,29.0856]
[1719397589378,24.00541413,136.36,136.28,29.0856]
[1719397590698,7.3355,136.33,136.29,7.3372]
[1719397591300,24.00541413,136.36,136.29,18.3427]
[1719397591609,24.00541413,136.36,136.29,25.6798]
[1719397591610,16.3489,136.36,136.29,25.6798]
[1719397591984,24.0053381,136.36,136.29,25.6798]
[1719397592584,7.3357,136.32,136.29,18.3427]
[1719397593490,7.3353,136.33,136.29,18.3427]
[1719397593699,7.3359,136.32,136.27,7.3381]
[1719397594379,42.3394381,136.36,136.27,7.3381]
[1719397594579,0.34,136.35,136.27,7.3381]
[1719397596100,28.0538167,136.35,136.26,18.3461]
[1719397596401,28.0538167,136.35,136.26,25.6849]
[1719397597388,7.7138167,136.34,136.26,25.6849]
[1719397598203,7.3365,136.31,136.26,25.6849]
[1719397599296,7.3368,136.3,136.26,18.3461]
[1719397599693,7.3368,136.3,136.26,25.6849]
[1719397600793,7.3368,136.3,136.26,18.3461]
[1719397601204,7.3368,136.3,136.26,25.6849]
[1719397601705,7.3368,136.3,136.26,18.3461]
[1719397602408,7.3368,136.3,136.26,25.6849]
[1719397602797,7.3368,136.3,136.26,18.3461]
[1719397603881,7.65954744,136.33,136.26,25.6849]
[1719397604302,7.65954744,136.33,136.26,18.3461]
[1719397604507,7.65954744,136.33,136.26,25.6847]
[1719397605290,7.65954744,136.33,136.26,18.3461]
[1719397605497,7.7138167,136.34,136.28,7.3374]
[1719397605901,16.3489,136.36,136.27,6.3896]
[1719397606104,268.3138167,136.39,136.31,7.336]
[1719397606415,7.7138167,136.39,136.31,7.336]
[1719397606588,13.59626801,136.39,136.32,8.80025487]
[1719397606791,13.59626801,136.39,136.33,1.46454743]
[1719397607282,13.59626801,136.39,136.32,7.3356]
[1719397607283,7.3334,136.37,136.32,7.3356]
[1719397607482,7.3335,136.36,136.31,34.476]
[1719397607992,7.3335,136.36,136.31,7.336]
[1719397608300,7.3335,136.36,136.31,34.476]
[1719397608786,7.3335,136.36,136.31,7.336]
[1719397609189,7.3335,136.36,136.31,34.476]
[1719397609527,18.3317,136.38,136.3,18.3411]
[1719397609696,7.7138167,136.37,136.29,15.8039]
[1719397610310,7.7138167,136.37,136.27,51.8746]
[1719397610518,7.7138167,136.37,136.28,7.3377]
[1719397610519,7.3357,136.32,136.28,7.3377]
[1719397611522,7.3353,136.33,136.28,7.3377]
[1719397612519,7.3353,136.33,136.29,7.3372]
[1719397613520,7.3357,136.32,136.28,7.3377]
[1719397614128,7.3357,136.32,136.27,25.6832]
[1719397617026,7.3362,136.31,136.27,25.6832]
[1719397618443,7.3362,136.31,136.27,18.345]
[1719397620047,7.3367,136.3,136.27,18.345]
[1719397620425,7.3367,136.3,136.26,7.3388]
[1719397621416,7.3367,136.3,136.25,7.3392]
[1719397622317,7.3373,136.29,136.25,7.3392]
[1719397622822,7.3368,136.3,136.25,7.3392]
[1719397625232,6.2384,136.3,136.21,25.45372]
[1719397625447,7.3385,136.27,136.21,25.45372]
[1719397625830,7.3385,136.27,136.23,7.3403]
[1719397627625,7.3379,136.28,136.24,7.3399]
[1719397628417,7.3384,136.27,136.23,25.6913]
[1719397628940,7.3389,136.26,136.23,18.351]
[1719397629435,7.3389,136.26,136.23,22.21456674]
[1719397630328,7.3385,136.27,136.23,22.21456674]
[1719397630720,7.3395,136.25,136.21,0.85452]
[1719397630924,7.3391,136.26,136.22,7.341]
[1719397631126,7.3391,136.26,136.23,1.35546546]
[1719397631525,7.3391,136.26,136.23,1.93067742]
[1719397632121,7.3394,136.25,136.23,1.93067742]
[1719397632329,7.34,136.24,136.22,1.93067742]
[1719397632943,7.34,136.24,136.21,0.85452]
[1719397633136,7.34,136.24,136.21,1.31909371]
[1719397633443,7.34,136.24,136.21,4.82155315]
[1719397634328,7.3395,136.25,136.21,4.82155315]
[1719397634853,7.339,136.26,136.21,4.82155315]
[1719397635047,7.339,136.26,136.21,12.16295315]
[1719397635451,7.3394,136.25,136.21,12.16295315]
[1719397636033,7.3394,136.25,136.21,4.82155315]
[1719397636961,7.34,136.24,136.21,4.82155315]
[1719397638454,7.66088481,136.29,136.22,34.69329688]
[1719397638757,7.3393,136.26,136.22,33.6583]
[1719397639461,7.3389,136.26,136.22,33.6583]
[1719397639638,7.3384,136.27,136.22,33.6583]
[1719397639838,7.338,136.28,136.23,7.3401]
[1719397640255,7.3384,136.27,136.23,7.3401]
[1719397640440,7.3379,136.28,136.23,7.3401]
[1719397640649,7.3379,136.28,136.24,7.3399]
[1719397640839,7.3379,136.28,136.23,7.3403]
[1719397641039,7.3379,136.28,136.24,7.3397]
[1719397642057,7.3384,136.27,136.23,7.3404]
[1719397642662,7.3362,136.31,136.27,7.3383]
[1719397643154,15.0496167,136.32,136.27,7.3383]
[1719397643358,15.0496167,136.32,136.28,7.3377]
[1719397643860,7.3362,136.31,136.27,7.3383]
[1719397649073,49.93662186,136.35,136.28,18.3443]
[1719397649263,15.567,136.35,136.28,18.5143]
[1719397649465,15.567,136.35,136.3,7.3367]
[1719397649641,7.3341,136.35,136.3,7.3367]
[1719397649946,7.3346,136.34,136.3,7.3367]
[1719397651066,7.7138167,136.36,136.31,7.3361]
[1719397651256,7.334,136.36,136.31,7.3361]
[1719397651658,7.3342,136.35,136.31,7.3361]
[1719397651837,7.3336,136.36,136.3,45.4815]
[1719397652037,7.3336,136.36,136.32,7.3356]
[1719397652259,7.3328,136.38,136.34,7.3345]
[1719397652467,7.3328,136.38,136.35,1.46599222]
[1719397653138,7.3331,136.37,136.33,7.3349]
[1719397653864,6.3763,136.43,136.34,0.17]
[1719397654165,7.3319,136.39,136.34,7.6742]
[1719397655362,7.3319,136.39,136.35,7.334]
[1719397655868,7.3314,136.4,136.35,7.334]
[1719397657466,7.332,136.39,136.35,7.334]
[1719397658469,7.3314,136.4,136.35,7.334]
[1719397658783,7.3324,136.38,136.34,7.6744]
[1719397659545,7.331,136.41,136.35,18.3347]
[1719397659762,7.331,136.41,136.36,7.3331]
[1719397660153,7.331,136.41,136.37,7.3329]
[1719397660961,7.3303,136.42,136.38,7.3322]
[1719397661256,7.3303,136.42,136.37,25.6647]
[1719397662064,15.2965,136.44,136.37,25.6647]
[1719397662264,7.3308,136.41,136.37,25.6647]
[1719397663551,7.3308,136.41,136.37,18.3319]
[1719397665553,7.3314,136.4,136.37,18.3319]
[1719397667467,7.3314,136.4,136.38,3.08118123]
[1719397667856,7.3314,136.4,136.37,18.3319]
[1719397670156,21.17344859,136.44,136.34,18.3355]
[1719397670362,7.3331,136.37,136.33,13.8336]
[1719397670762,7.65749032,136.46,136.36,27.14]
[1719397670962,51.9512,136.48,136.34,16.2266]
[1719397670963,7.3303,136.42,136.38,7.3322]
[1719397671376,7.3303,136.42,136.39,1.53868019]
[1719397671551,7.3303,136.42,136.38,7.3322]
[1719397671753,7.3308,136.41,136.37,25.664]
[1719397672865,7.3305,136.42,136.38,7.3321]
[1719397674085,7.3305,136.42,136.37,25.6641]
[1719397675084,7.3305,136.42,136.38,7.3323]
[1719397676466,7.3322,136.39,136.34,41.8963]
[1719397676677,7.3322,136.39,136.34,34.5623]
[1719397676858,7.3322,136.39,136.35,7.3338]
[1719397677981,7.3309,136.41,136.37,7.3329]
[1719397678859,7.3316,136.4,136.36,25.6669]
[1719397679287,7.331,136.41,136.36,25.6669]
[1719397679594,7.3315,136.4,136.36,25.6669]
[1719397681196,7.3309,136.41,136.37,7.3329]
[1719397682663,7.3314,136.4,136.36,25.6668]
[1719397683593,7.3319,136.39,136.35,7.3339]
[1719397683973,7.3319,136.39,136.34,23.5609]
[1719397684573,7.3319,136.39,136.35,7.3339]
[1719397685701,34.1585,136.43,136.34,7.3344]
[1719397685702,7.3324,136.38,136.34,7.3344]
[1719397687511,7.332,136.39,136.35,7.3338]
[1719397690260,7.3325,136.38,136.34,7.3345]
[1719397690926,7.3325,136.38,136.34,12.16914754]
[1719397691080,40.03454317,136.43,136.35,7.334]
[1719397691081,7.332,136.39,136.35,7.334]
[1719397691713,40.03454317,136.43,136.36,7.3334]
[1719397691913,7.3312,136.41,136.37,2.93909418]
[1719397692092,40.03454317,136.43,136.37,2.93909418]
[1719397692093,7.3304,136.42,136.38,7.332]
[1719397692293,6.3315,136.45,136.38,7.332]
[1719397692805,6.3315,136.45,136.39,2.57666545]
[1719397693205,7.3307,136.42,136.39,2.57666545]
[1719397693408,6.3315,136.45,136.37,25.6645]
[1719397693901,7.3308,136.41,136.37,25.6645]
[1719397694913,7.3304,136.42,136.38,7.3323]
[1719397695095,7.3299,136.43,136.38,7.3323]
[1719397695501,7.3303,136.42,136.38,7.3323]
[1719397697026,7.3303,136.42,136.37,25.6645]
[1719397698511,7.331,136.41,136.37,25.6645]
[1719397699205,7.3304,136.42,136.37,25.6645]
[1719397699427,87.8871605,136.47,136.37,45.4717]
[1719397699629,7.3299,136.43,136.39,7.3315]
[1719397701727,7.3288,136.45,136.4,7.3309]
[1719397702923,61.90478336,136.47,136.42,7.33]
[1719397702924,6.94248336,136.47,136.42,7.33]
[1719397703124,35.6821497,136.49,136.4,22.6875]
[1719397703423,50.26101505,136.49,136.4,22.6875]
[1719397704325,7.3293,136.44,136.4,22.6875]
[1719397705244,7.3285,136.46,136.41,6.3434]
[1719397705427,7.3285,136.46,136.42,7.3299]
[1719397705629,7.3278,136.47,136.42,7.3299]
[1719397706219,7.3281,136.46,136.42,7.3299]
[1719397709228,48.57022314,136.49,136.42,7.3299]
[1719397709420,7.3278,136.47,136.42,7.3299]
[1719397710441,7.3282,136.46,136.42,7.3299]
[1719397711530,7.329,136.45,136.41,6.3434]
[1719397711721,74.52444798,136.49,136.41,6.3434]
[1719397712035,0.17,136.48,136.41,6.3434]
[1719397712832,0.17,136.48,136.4,33.6845]
[1719397713015,7.3299,136.43,136.4,15.3563]
[1719397713217,7.3308,136.41,136.4,15.3563]
[1719397713429,18.3227,136.45,136.38,13.4782]
[1719397713430,7.3305,136.42,136.38,13.4782]
[1719397713722,7.3305,136.42,136.38,6.1458]
[1719397713943,7.3299,136.43,136.39,7.3318]
[1719397714752,7.3293,136.44,136.39,7.3318]
[1719397715314,7.3298,136.43,136.39,7.3318]
[1719397716537,7.3293,136.44,136.39,7.3318]
[1719397716742,7.3287,136.45,136.4,18.3282]
[1719397716924,43.31997454,136.49,136.41,16.4542]
[1719397717236,43.31997454,136.49,136.45,7.3285]
[1719397717237,7.3266,136.49,136.45,7.3285]
[1719397717822,23.4512,136.51,136.46,7.328]
[1719397718028,23.4512,136.51,136.45,7.3284]
[1719397718029,7.326,136.5,136.45,7.3284]
[1719397718233,7.3265,136.49,136.45,7.3284]
[1719397718439,7.3265,136.49,136.44,25.6516]
[1719397718739,16.1253,136.51,136.43,13.3965]
[1719397718740,7.3278,136.47,136.43,13.3965]
[1719397719335,7.3278,136.47,136.43,13.3966]
[1719397719534,7.3278,136.47,136.43,6.0669]
[1719397719737,7.3272,136.48,136.43,13.3965]
[1719397719945,7.3272,136.48,136.44,7.3292]
[1719397720452,7.3272,136.48,136.43,31.7205]
[1719397721645,7.3272,136.48,136.43,25.6536]
[1719397721845,7.3276,136.47,136.43,25.6536]
[1719397723633,7.3266,136.49,136.44,7.329]
[1719397724134,7.3266,136.49,136.45,7.3286]
[1719397724530,7.3266,136.49,136.44,7.3292]
[1719397726756,7.3279,136.47,136.43,18.3241]
[1719397726956,7.3279,136.47,136.42,10.98273494]
[1719397726957,7.3277,136.47,136.42,10.98273494]
[1719397727126,16.1253,136.51,136.44,18.3227]
[1719397727323,20.17,136.5,136.44,25.6517]
[1719397727945,7.327,136.48,136.44,18.3227]
[1719397728444,38.4852,136.5,136.41,42.1109]
[1719397728633,0.17,136.49,136.42,7.3301]
[1719397729042,7.3282,136.46,136.42,7.3301]
[1719397734850,20.0,136.5,136.44,7.3291]
[1719397735055,7.327,136.49,136.44,7.3291]
[1719397735434,27.326,136.5,136.45,18.3215]
[1719397735635,20.0,136.5,136.45,18.3215]
[1719397735836,7.3268,136.49,136.45,25.6499]
[1719397736162,7.3271,136.48,136.45,18.3215]
[1719397736846,7.3271,136.48,136.44,7.329]
[1719397737539,7.3267,136.49,136.44,7.329]
[1719397738341,7.3267,136.49,136.45,7.3284]
[1719397738756,7.3259,136.51,136.46,7.328]
[1719397738961,22.4123,136.55,136.47,7.327]
[1719397739146,20.0,136.53,136.47,7.327]
[1719397739547,30.05812072,136.55,136.48,7.3269]
[1719397739744,7.64582072,136.55,136.48,27.14]
[1719397739963,7.3233,136.55,136.5,25.6398]
[1719397740166,7.3233,136.55,136.5,18.314]
[1719397740389,267.9228,136.56,136.51,7.3254]
[1719397740576,260.6,136.56,136.52,7.3248]
[1719397741245,267.9227,136.56,136.51,7.3253]
[1719397741655,260.6,136.56,136.52,7.3247]
[1719397742272,7.3205,136.61,136.54,18.3086]
[1719397742453,7.3208,136.6,136.55,7.3231]
[1719397742656,7.3208,136.6,136.54,25.6323]
[1719397742851,7.3201,136.61,136.55,7.3232]
[1719397743249,7.3201,136.61,136.56,1.53281761]
[1719397743566,260.6,136.62,136.56,1.53281761]
[1719397743776,260.6,136.62,136.56,46.97891761]
[1719397744082,7.3183,136.65,136.58,45.4433]
[1719397744240,6.94248336,136.67,136.61,18.3002]
[1719397744542,260.6,136.7,136.61,18.3002]
[1719397744745,7.3184,136.65,136.59,7.321]
[1719397744947,7.3184,136.65,136.6,7.3205]
[1719397745160,26.08750336,136.69,136.58,42.5717]
[1719397745360,26.08750336,136.69,136.59,7.321]
[1719397745544,7.3183,136.65,136.59,7.321]
[1719397746260,7.3196,136.62,136.58,35.0805]
[1719397746466,7.3191,136.63,136.58,42.232]
[1719397746674,22.6578,136.62,136.43,64.6928]
[1719397746983,22.6578,136.62,136.46,7.328]
[1719397746984,7.325,136.52,136.46,7.328]
[1719397747145,7.325,136.52,136.45,18.3216]
[1719397747146,53.91559868,136.61,136.45,18.3216]
[1719397747346,53.91559868,136.61,136.46,7.3276]
[1719397747347,7.3249,136.52,136.46,7.3276]
[1719397747552,7.3249,136.52,136.45,18.3216]
[1719397747746,7.3255,136.51,136.45,18.3216]
[1719397747975,7.3255,136.51,136.46,7.3276]
[1719397748178,7.3265,136.5,136.45,18.3216]
[1719397748383,7.3267,136.49,136.45,18.3216]
[1719397749173,7.3267,136.49,136.45,25.6502]
[1719397749470,18.4802,136.54,136.45,18.3216]
[1719397749675,7.3255,136.51,136.46,7.3281]
[1719397749981,8.59960672,136.53,136.45,18.3216]
[1719397750154,7.3245,136.53,136.45,18.3216]
[1719397750456,7.3245,136.53,136.43,6.0063]
[1719397750457,7.3245,136.53,136.48,7.3268]
[1719397750658,7.3239,136.54,136.49,7.3262]
[1719397750857,7.3244,136.53,136.48,7.3269]
[1719397751057,278.9058,136.57,136.47,18.3183]
[1719397751270,20.0,136.56,136.47,18.3183]
[1719397751465,20.0,136.56,136.47,34.7248]
[1719397751661,20.0,136.56,136.49,18.3157]
[1719397752278,7.3233,136.55,136.5,7.3256]
[1719397752451,7.3238,136.54,136.49,18.3157]
[1719397752654,7.3238,136.54,136.49,25.642]
[1719397753884,9.16893194,136.57,136.5,0.17]
[1719397754092,7.3228,136.56,136.51,7.3253]
[1719397756555,16.49123194,136.57,136.52,7.3247]
[1719397756870,9.16893194,136.57,136.53,25.6343]
[1719397757071,16.49143194,136.57,136.53,18.3101]
[1719397757265,7.3216,136.59,136.53,18.3101]
[1719397757668,7.322,136.58,136.54,0.17]
[1719397758671,7.322,136.58,136.54,7.3237]
[1719397759060,9.66176515,136.63,136.55,18.3079]
[1719397759262,20.0,136.62,136.55,18.4779]
[1719397759593,7.3205,136.61,136.56,7.3226]
[1719397760475,7.3207,136.6,136.56,7.3226]
[1719397760869,7.3202,136.61,136.56,7.3226]
[1719397763410,7.3213,136.59,136.55,33.7119]
[1719397763595,7.3207,136.6,136.55,41.0351]
[1719397763777,7.3207,136.6,136.56,7.3227]
[1719397764304,9.16893194,136.6,136.52,18.3113]
[1719397764606,7.3228,136.56,136.52,18.3113]
[1719397765284,7.3228,136.56,136.52,25.6361]
[1719397765483,7.3224,136.57,136.52,25.6361]
[1719397765685,7.3224,136.57,136.53,8.79001407]
[1719397766085,7.3224,136.57,136.53,7.3243]
[1719397766417,7.3228,136.56,136.52,18.3113]
[1719397767303,7.3218,136.58,136.53,7.3243]
[1719397767514,7.3222,136.57,136.53,7.3243]
[1719397767907,20.0,136.59,136.53,7.3243]
[1719397768477,7.3223,136.57,136.52,25.636]
[1719397769726,7.3223,136.57,136.53,7.3243]
[1719397769892,7.3222,136.57,136.53,7.3243]
[1719397770226,27.3213,136.59,136.54,7.3236]
[1719397770822,7.3218,136.58,136.53,7.3242]
[1719397771119,7.3218,136.58,136.53,7.4942]
[1719397771794,7.3218,136.58,136.54,7.3238]
[1719397772120,7.3218,136.58,136.53,7.4942]
[1719397774102,38.3037,136.59,136.51,16.2112]
[1719397774293,7.3236,136.55,136.51,16.2112]
[1719397774518,7.3236,136.55,136.51,23.5366]
[1719397774717,7.3229,136.56,136.52,7.3248]
[1719397776722,7.3224,136.57,136.51,34.5244]
[1719397777027,7.3224,136.57,136.53,7.3243]
[1719397777231,7.3228,136.56,136.52,7.3248]
[1719397777421,7.3223,136.57,136.52,7.3248]
[1719397777798,16.98356515,136.58,136.54,7.3238]
[1719397778033,9.66176515,136.58,136.54,7.3238]
[1719397778333,7.3213,136.59,136.55,7.3232]
[1719397778922,7.3208,136.6,136.55,7.3232]
[1719397779107,20.0,136.59,136.55,7.3232]
[1719397779506,27.3212,136.59,136.55,7.3232]
[1719397780228,27.3212,136.59,136.54,7.3236]
[1719397781930,27.3212,136.59,136.55,7.3232]
[1719397782127,7.3206,136.61,136.56,7.3227]
[1719397782308,7.3209,136.6,136.55,18.308]
[1719397782630,7.3209,136.6,136.56,0.17]
[1719397782837,7.3209,136.6,136.56,7.4924]
[1719397783702,7.6296411,136.64,136.57,7.3218]
[1719397783937,7.3204,136.61,136.56,7.4926]
[1719397785744,7.3206,136.6,136.56,7.4926]
[1719397786745,7.3206,136.6,136.56,0.17]
[1719397789352,7.3206,136.6,136.56,7.4927]
[1719397792862,20.0,136.63,136.56,7.4927]
[1719397792863,7.3203,136.61,136.56,7.4927]
[1719397793032,7.3203,136.61,136.57,7.322]
[1719397793233,7.3197,136.62,136.57,7.322]
[1719397793459,20.0,136.61,136.57,7.322]
[1719397793665,7.3197,136.62,136.57,7.322]
[1719397794542,7.319,136.63,136.57,33.6814]
[1719397794723,7.319,136.63,136.58,7.4912]
[1719397795243,7.3196,136.62,136.59,1.17662405]
[1719397795838,7.3192,136.63,136.59,1.17662405]
[1719397796056,16.33128737,136.64,136.59,8.49732405]
[1719397797157,7.319,136.63,136.6,1.17653813]
[1719397797831,16.33108737,136.64,136.59,7.3207]
[1719397798037,260.6,136.68,136.6,24.3367]
[1719397798231,7.3172,136.67,136.62,18.2984]
[1719397798457,7.3172,136.67,136.62,25.6177]
[1719397799258,260.6,136.68,136.62,25.6177]
[1719397799259,7.3174,136.66,136.62,25.6177]
[1719397799555,7.3169,136.67,136.63,7.3185]
[1719397799754,260.6,136.68,136.61,18.6396]
[1719397799956,7.3183,136.65,136.61,18.4696]
[1719397800129,7.3183,136.65,136.61,25.6194]
[1719397800448,7.318,136.65,136.6,13.356]
[1719397800657,7.318,136.65,136.61,7.32]
[1719397800866,260.6,136.68,136.6,24.3368]
[1719397801052,7.3189,136.64,136.6,31.6573]
[1719397801557,7.318,136.65,136.6,31.6573]
[1719397802135,7.3191,136.63,136.6,6.0355]
[1719397802451,7.3191,136.63,136.58,7.3213]
[1719397802659,7.3197,136.62,136.57,41.0032]
[1719397803159,7.3191,136.63,136.57,33.6811]
[1719397803457,20.0,136.62,136.59,7.3211]
[1719397803659,38.2994,136.62,136.54,18.3094]
[1719397803837,7.3212,136.59,136.54,25.6332]
[1719397804157,38.2994,136.62,136.53,16.5712]
[1719397804330,46.4452207,136.62,136.53,16.5712]
[1719397804724,7.323,136.56,136.53,16.5712]
[1719397804929,7.323,136.56,136.52,6.5178]
[1719397805147,7.323,136.56,136.52,13.8426]
[1719397805355,7.3224,136.57,136.52,13.8426]
[1719397805554,0.17,136.61,136.52,13.8426]
[1719397805555,7.3218,136.58,136.53,7.3243]
[1719397805758,20.0,136.57,136.53,7.3243]
[1719397805959,20.0,136.57,136.54,7.3234]
[1719397806155,20.0,136.57,136.53,25.6342]
[1719397806671,8.1458207,136.62,136.52,6.5178]
[1719397806983,16.3328,136.67,136.59,18.302]
[1719397807275,7.69804292,136.66,136.54,16.3411]
[1719397807469,7.69804292,136.66,136.58,7.3216]
[1719397807678,7.3186,136.64,136.58,7.3216]
[1719397808044,7.3191,136.63,136.58,7.3216]
[1719397808461,20.0,136.62,136.58,7.3216]
[1719397809081,20.0,136.62,136.57,18.3048]
[1719397809367,20.0,136.62,136.55,0.34]
[1719397809368,7.69804292,136.62,136.55,0.17]
[1719397809576,7.3216,136.59,136.54,34.6503]
[1719397809746,20.0,136.58,136.54,34.6503]
[1719397809947,20.0,136.58,136.54,41.9739]
[1719397810963,20.0,136.59,136.56,18.3062]
[1719397811270,7.69804292,136.62,136.57,7.3217]
[1719397811470,7.3211,136.6,136.54,16.3411]
[1719397811673,7.3211,136.6,136.54,23.6645]